fUSD/lending_fUSD_20250123
["ID","MTS","AMOUNT","RATE_DAILY","PERIOD"]
[350154626,1737659444906,-500.0,0.00016712,2]
[350154628,1737659444916,-500.0,0.00016712,2]
[350154630,1737659444925,-500.0,0.00016712,2]
[350154632,1737659444934,-500.0,0.00016712,2]
[350154634,1737659444943,-500.0,0.00016712,2]
[350154636,1737659444953,-500.0,0.00016712,2]
[350154638,1737659444963,-392.05425442,0.00016712,2]
[350154640,1737659444972,-500.0,0.00016712,2]
[350154642,1737659444982,-500.0,0.00016712,2]
[350154644,1737659444991,-200.60571768,0.00016712,2]
[350154646,1737659445002,-500.0,0.00016712,2]
[350154648,1737659445011,-500.0,0.00016712,2]
[350154650,1737659445021,-500.0,0.00016712,2]
[350154652,1737659445030,-500.0,0.00016712,2]
[350154654,1737659445039,-500.0,0.00016712,2]
[350154656,1737659445048,-500.0,0.00016712,2]
[350154658,1737659445057,-500.0,0.00016712,2]
[350154660,1737659445066,-500.0,0.00016712,2]
[350154662,1737659445076,-500.0,0.00016712,2]
[350154664,1737659445086,-500.0,0.00016712,2]
[350154666,1737659445095,-500.0,0.00016712,2]
[350154668,1737659445105,-500.0,0.00016712,2]
[350154670,1737659445114,-500.0,0.00016712,2]
[350154672,1737659445123,-500.0,0.00016712,2]
[350154674,1737659445133,-500.0,0.00016712,2]
[350154676,1737659445142,-500.0,0.00016712,2]
[350154678,1737659445151,-500.0,0.00016712,2]
[350154680,1737659445160,-500.0,0.00016712,2]
[350154682,1737659445169,-500.0,0.00016712,2]
[350154684,1737659445178,-500.0,0.00016712,2]
[350154686,1737659445189,-500.0,0.00016712,2]
[350154688,1737659445198,-500.0,0.00016712,2]
[350154690,1737659445208,-500.0,0.00016712,2]
[350154692,1737659445217,-500.0,0.00016712,2]
[350154696,1737659445226,-500.0,0.00016712,2]
[350154700,1737659445236,-500.0,0.00016712,2]
[350154722,1737659445409,-500.0,0.00016712,2]
[350154724,1737659445421,-500.0,0.00016712,2]
[350154726,1737659445431,-500.0,0.00016712,2]
[350154728,1737659445440,-500.0,0.00016712,2]
[350154730,1737659445450,-500.0,0.00016712,2]
[350154732,1737659445459,-500.0,0.00016712,2]
[350154734,1737659445468,-500.0,0.00016712,2]
[350154736,1737659445478,-500.0,0.00016712,2]
[350154738,1737659445487,-500.0,0.00016712,2]
[350154740,1737659445496,-500.0,0.00016712,2]
[350154742,1737659445510,-500.0,0.00016712,2]
[350154744,1737659445520,-500.0,0.00016712,2]
[350154746,1737659445530,-500.0,0.00016712,2]
[350154748,1737659445539,-500.0,0.00016712,2]
[350154750,1737659445549,-500.0,0.00016712,2]
[350154752,1737659445558,-500.0,0.00016712,2]
[350154754,1737659445568,-500.0,0.00016712,2]
[350154756,1737659445577,-500.0,0.00016712,2]
[350154758,1737659445587,-500.0,0.00016712,2]
[350154760,1737659445596,-573.73,0.00016712,2]
[350154762,1737659445606,-500.0,0.00016712,2]
[350154764,1737659445615,-500.0,0.00016712,2]
[350154765,1737659445625,-500.0,0.00016712,2]
[350154766,1737659445634,-500.0,0.00016712,2]
[350154767,1737659445644,-500.0,0.00016712,2]
[350154768,1737659445653,-500.0,0.00016712,2]
[350154769,1737659445663,-500.0,0.00016712,2]
[350154770,1737659445673,-500.0,0.00016712,2]
[350154771,1737659445682,-500.0,0.00016712,2]
[350154772,1737659445693,-500.0,0.00016712,2]
[350154773,1737659445703,-500.0,0.00016712,2]
[350154775,1737659445713,-500.0,0.00016712,2]
[350154777,1737659445724,-500.0,0.00016712,2]
[350154779,1737659445733,-500.0,0.00016712,2]
[350154781,1737659445743,-500.0,0.00016712,2]
[350154783,1737659445752,-500.0,0.00016712,2]
[350154785,1737659445761,-500.0,0.00016712,2]
[350154787,1737659445770,-500.0,0.00016712,2]
[350154789,1737659445779,-500.0,0.00016712,2]
[350154791,1737659445788,-500.0,0.00016712,2]
[350154793,1737659445797,-500.0,0.00016712,2]
[350154795,1737659445806,-500.0,0.00016712,2]
[350154797,1737659445815,-500.0,0.00016712,2]
[350154799,1737659445824,-459.4201209,0.00016712,2]
[350154801,1737659445833,-500.0,0.00016712,2]
[350154803,1737659445842,-500.0,0.00016712,2]
[350154805,1737659445851,-500.0,0.00016712,2]
[350154807,1737659445861,-500.0,0.00016712,2]
[350154809,1737659445870,-349.43637303,0.00016712,2]
[350154811,1737659445878,-500.0,0.00016712,2]
[350154813,1737659445888,-500.0,0.00016712,2]
[350154815,1737659445898,-500.0,0.00016712,2]
[350154817,1737659445907,-500.0,0.00016712,2]
[350154819,1737659445916,-500.0,0.00016712,2]
[350154821,1737659445925,-500.0,0.00016712,2]
[350154823,1737659445934,-500.0,0.00016712,2]
[350154825,1737659445943,-500.0,0.00016712,2]
[350154827,1737659445953,-500.0,0.00016712,2]
[350154829,1737659445962,-500.0,0.00016712,2]
[350154831,1737659445972,-500.0,0.00016712,2]
[350154833,1737659445981,-500.0,0.00016712,2]
[350154835,1737659445991,-500.0,0.00016712,2]
[350154837,1737659446001,-500.0,0.00016712,2]
[350154839,1737659446012,-313.87160619,0.00016712,2]
[350154841,1737659446022,-500.0,0.00016712,2]
[350154843,1737659446031,-500.0,0.00016712,2]
[350154845,1737659446041,-486.90177044,0.00016712,2]
[350154847,1737659446051,-500.0,0.00016712,2]
[350154849,1737659446060,-500.0,0.00016712,2]
[350154851,1737659446070,-189.48161327,0.00016712,2]
[350154853,1737659446079,-500.0,0.00016712,2]
[350154855,1737659446088,-500.0,0.00016712,2]
[350154857,1737659446097,-215.33778983,0.00016712,2]
[350154859,1737659446107,-500.0,0.00016712,2]
[350154861,1737659446116,-500.0,0.00016712,2]
[350154863,1737659446125,-500.0,0.00016712,2]
[350154865,1737659446135,-500.0,0.00016712,2]
[350154867,1737659446144,-500.0,0.00016712,2]
[350154869,1737659446153,-500.0,0.00016712,2]
[350154871,1737659446162,-500.0,0.00016712,2]
[350154873,1737659446171,-536.67270339,0.00016712,2]
[350154875,1737659446182,-500.0,0.00016712,2]
[350154877,1737659446191,-500.0,0.00016712,2]
[350154879,1737659446200,-500.0,0.00016712,2]
[350154881,1737659446209,-500.0,0.00016712,2]
[350154883,1737659446219,-500.0,0.00016712,2]
[350154885,1737659446228,-500.0,0.00016712,2]
[350154887,1737659446238,-398.86031475,0.00016712,2]
[350154889,1737659446248,-500.0,0.00016712,2]
[350154891,1737659446258,-500.0,0.00016712,2]
[350154893,1737659446267,-500.0,0.00016712,2]
[350154895,1737659446276,-500.0,0.00016712,2]
[350154898,1737659446285,-500.0,0.00016712,2]
[350154901,1737659446294,-500.0,0.00016712,2]
[350154904,1737659446305,-500.0,0.00016712,2]
[350154907,1737659446314,-500.0,0.00016712,2]
[350154910,1737659446324,-500.0,0.00016712,2]
[350154913,1737659446338,-500.0,0.00016712,2]
[350154916,1737659446347,-252.90070783,0.00016712,2]
[350154919,1737659446356,-500.0,0.00016712,2]
[350154922,1737659446365,-500.0,0.00016712,2]
[350154925,1737659446375,-301.07996647,0.00016712,2]
[350154928,1737659446385,-500.0,0.00016712,2]
[350154930,1737659446394,-500.0,0.00016712,2]
[350154932,1737659446403,-500.0,0.00016712,2]
[350154934,1737659446412,-500.0,0.00016712,2]
[350154936,1737659446422,-500.0,0.00016712,2]
[350154938,1737659446431,-500.0,0.00016712,2]
[350154939,1737659446439,-500.0,0.00016712,2]
[350154940,1737659446448,-500.0,0.00016712,2]
[350154942,1737659446457,-500.0,0.00016712,2]
[350154944,1737659446466,-500.0,0.00016712,2]
[350154946,1737659446475,-500.0,0.00016712,2]
[350154948,1737659446485,-500.0,0.00016712,2]
[350154950,1737659446493,-500.0,0.00016712,2]
[350154953,1737659446507,-500.0,0.00016712,2]
[350154956,1737659446524,-63.87745669,0.00016712,2]
[350154959,1737659446547,-436.12254331,0.00016712,2]
[350154961,1737659446561,-228.59445669,0.00016712,2]
[350154964,1737659446580,-271.40554331,0.00016712,2]
[350154967,1737659446595,-500.0,0.00016712,2]
[350154969,1737659446609,-500.0,0.00016712,2]
[350154972,1737659446623,-500.0,0.00016712,2]
[350154974,1737659446635,-500.0,0.00016712,2]
[350154977,1737659446648,-500.0,0.00016712,2]
[350154979,1737659446663,-500.0,0.00016712,2]
[350154982,1737659446677,-500.0,0.00016712,2]
[350154984,1737659446692,-500.0,0.00016712,2]
[350154987,1737659446706,-500.0,0.00016712,2]
[350154989,1737659446720,-500.0,0.00016712,2]
[350154992,1737659446735,-500.0,0.00016712,2]
[350154994,1737659446749,-500.0,0.00016712,2]
[350154997,1737659446770,-500.0,0.00016712,2]
[350154999,1737659446784,-219.63968744,0.00016712,2]
[350155002,1737659446800,-500.0,0.00016712,2]
[350155004,1737659446814,-500.0,0.00016712,2]
[350155006,1737659446826,-500.0,0.00016712,2]
[350155009,1737659446838,-500.0,0.00016712,2]
[350155011,1737659446852,-500.0,0.00016712,2]
[350155014,1737659446868,-500.0,0.00016712,2]
[350155016,1737659446879,-500.0,0.00016712,2]
[350155018,1737659446890,-580.40352711,0.00016712,2]
[350155021,1737659446904,-610.92,0.00016712,2]
[350155023,1737659446919,-500.0,0.00016712,2]
[350155025,1737659446930,-706.81,0.00016712,2]
[350155027,1737659446941,-546.07,0.00016712,2]
[350155030,1737659446955,-500.0,0.00016712,2]
[350155032,1737659446967,-500.0,0.00016712,2]
[350155034,1737659446980,-1003.27,0.00016712,2]
[350155037,1737659446992,-500.0,0.00016712,2]
[350155039,1737659447005,-500.0,0.00016712,2]
[350155041,1737659447018,-625.99,0.00016712,2]
[350155044,1737659447030,-570.26,0.00016712,2]
[350155046,1737659447042,-500.0,0.00016712,2]
[350155048,1737659447054,-2144.07,0.00016712,2]
[350155050,1737659447067,-523.31,0.00016712,2]
[350155053,1737659447079,-500.0,0.00016712,2]
[350155055,1737659447091,-912.68,0.00016712,2]
[350155057,1737659447104,-576.57,0.00016712,2]
[350155060,1737659447116,-941.99,0.00016712,2]
[350155062,1737659447128,-814.94,0.00016712,2]
[350155065,1737659447140,-552.46,0.00016712,2]
[350155067,1737659447153,-500.0,0.00016712,2]
[350155069,1737659447165,-500.0,0.00016712,2]
[350155071,1737659447176,-1765.72,0.00016712,2]
[350155074,1737659447188,-438.962228,0.00016712,2]
[350155076,1737659447200,-500.0,0.00016712,2]
[350155078,1737659447211,-500.0,0.00016712,2]
[350155080,1737659447223,-500.0,0.00016712,2]
[350155083,1737659447236,-1382.35,0.00016712,2]
[350155085,1737659447248,-500.0,0.00016712,2]
[350155087,1737659447260,-500.0,0.00016712,2]
[350155090,1737659447272,-764.07,0.00016712,2]
[350155092,1737659447284,-349.2907806,0.00016712,2]
[350155094,1737659447298,-663.09,0.00016712,2]
[350155096,1737659447310,-500.0,0.00016712,2]
[350155098,1737659447321,-500.0,0.00016712,2]
[350155101,1737659447340,-1685.96,0.00016712,2]
[350155103,1737659447352,-647.39,0.00016712,2]
[350155105,1737659447364,-784.74,0.00016712,2]
[350155108,1737659447376,-500.0,0.00016712,2]
[350155110,1737659447389,-500.0,0.00016712,2]
[350155112,1737659447402,-816.16,0.00016712,2]
[350155114,1737659447415,-500.0,0.00016712,2]
[350155117,1737659447429,-500.0,0.00016712,2]
[350155119,1737659447441,-500.0,0.00016712,2]
[350155121,1737659447454,-500.0,0.00016712,2]
[350155124,1737659447466,-500.0,0.00016712,2]
[350155126,1737659447478,-504.112179,0.00016712,2]
[350155128,1737659447490,-500.0,0.00016712,2]
[350155131,1737659447503,-500.0,0.00016712,2]
[350155133,1737659447515,-500.0,0.00016712,2]
[350155135,1737659447528,-500.0,0.00016712,2]
[350155137,1737659447544,-500.0,0.00016712,2]
[350155139,1737659447556,-500.0,0.00016712,2]
[350155142,1737659447569,-2469.54,0.00016712,2]
[350155144,1737659447581,-500.0,0.00016712,2]
[350155146,1737659447593,-748.67,0.00016712,2]
[350155148,1737659447606,-500.0,0.00016712,2]
[350155151,1737659447619,-560.82,0.00016712,2]
[350155152,1737659447628,-500.0,0.00016712,2]
[350155153,1737659447637,-823.13898127,0.00016712,2]
[350155154,1737659447655,-73.01101873,0.00016712,2]
[350155155,1737659447665,-993.46,0.00016712,2]
[350155156,1737659447674,-500.0,0.00016712,2]
[350155157,1737659447684,-281.27491727,0.00016712,2]
[350155158,1737659447696,-576.00508273,0.00016712,2]
[350155160,1737659447706,-500.0,0.00016712,2]
[350155162,1737659447715,-1315.43,0.00016712,2]
[350155164,1737659447724,-1023.0328836,0.00016712,2]
[350155166,1737659447736,-23.6971164,0.00016712,2]
[350155168,1737659447747,-359.50308753,0.00016712,2]
[350155170,1737659447764,-55.20400473,0.00016712,2]
[350155172,1737659447773,-645.04,0.00016712,2]
[350155174,1737659447782,-286.76599527,0.00016712,2]
[350155183,1737659447859,-213.23400473,0.00016712,2]
[350155185,1737659447868,-1815.73,0.00016712,2]
[350155213,1737659448126,-500.0,0.00016712,2]
[350155215,1737659448142,-500.0,0.00016712,2]
[350155218,1737659448152,-503.15,0.00016712,2]
[350155220,1737659448162,-862.15,0.00016712,2]
[350155222,1737659448171,-500.0,0.00016712,2]
[350155224,1737659448181,-500.0,0.00016712,2]
[350155226,1737659448190,-1898.25,0.00016712,2]
[350155227,1737659448199,-726.91,0.00016712,2]
[350155229,1737659448209,-500.0,0.00016712,2]
[350155232,1737659448219,-500.0,0.00016712,2]
[350155234,1737659448231,-500.0,0.00016712,2]
[350155236,1737659448240,-645.35106096,0.00016712,2]
[350155238,1737659448250,-500.0,0.00016712,2]
[350155240,1737659448261,-907.74,0.00016712,2]
[350155242,1737659448271,-2176.53,0.00016712,2]
[350155243,1737659448280,-666.87,0.00016712,2]
[350155245,1737659448290,-905.1,0.00016712,2]
[350155247,1737659448300,-500.0,0.00016712,2]
[350155249,1737659448309,-500.0,0.00016712,2]
[350155251,1737659448319,-2308.47,0.00016712,2]
[350155254,1737659448330,-500.0,0.00016712,2]
[350155256,1737659448342,-500.0,0.00016712,2]
[350155258,1737659448352,-3000.0,0.00016712,2]
[350155259,1737659448361,-2228.58,0.00016712,2]
[350155261,1737659448371,-500.0,0.00016712,2]
[350155263,1737659448381,-500.0,0.00016712,2]
[350155265,1737659448390,-500.0,0.00016712,2]
[350155267,1737659448399,-339.03724797,0.00016712,2]
[350155292,1737659448779,-500.0,0.00016438,2]
[350155294,1737659448800,-160.96275203,0.00016712,2]
[350155295,1737659448811,-225.64185392,0.00016712,2]
[350155296,1737659448824,-274.35814608,0.00016712,2]
[350155297,1737659448835,-93.82185392,0.00016712,2]
[350155298,1737659448848,-406.17814608,0.00016712,2]
[350155299,1737659448859,-291.06185392,0.00016712,2]
[350155300,1737659448873,-610.88814608,0.00016712,2]
[350155301,1737659448883,-500.0,0.00016712,2]
[350155302,1737659448894,-618.35795097,0.00016712,2]
[350155303,1737659448907,-1297.64204903,0.00016712,2]
[350155304,1737659448916,-500.0,0.00016712,2]
[350155305,1737659448927,-871.22,0.00016712,2]
[350155306,1737659448937,-500.0,0.00016712,2]
[350155307,1737659448947,-500.0,0.00016712,2]
[350155308,1737659448957,-1589.5,0.00016712,2]
[350155309,1737659448967,-1591.14,0.00016712,2]
[350155310,1737659448978,-500.0,0.00016712,2]
[350155311,1737659448988,-500.0,0.00016712,2]
[350155312,1737659448998,-701.06,0.00016712,2]
[350155313,1737659449011,-726.08,0.00016712,2]
[350155314,1737659449021,-1735.27,0.00016712,2]
[350155315,1737659449032,-500.0,0.00016712,2]
[350155316,1737659449042,-500.0,0.00016712,2]
[350155317,1737659449052,-500.0,0.00016712,2]
[350155318,1737659449062,-500.0,0.00016712,2]
[350155319,1737659449072,-916.91,0.00016712,2]
[350155320,1737659449082,-500.0,0.00016712,2]
[350155321,1737659449091,-500.0,0.00016712,2]
[350155322,1737659449102,-1282.02,0.00016712,2]
[350155323,1737659449112,-4027.0,0.00016712,2]
[350155325,1737659449121,-1895.9,0.00016712,2]
[350155327,1737659449131,-500.0,0.00016712,2]
[350155329,1737659449141,-500.0,0.00016712,2]
[350155330,1737659449153,-500.0,0.00016712,2]
[350155332,1737659449163,-612.96011029,0.00016712,2]
[350155334,1737659449173,-628.98098779,0.00016712,2]
[350155336,1737659449183,-500.0,0.00016712,2]
[350155338,1737659449192,-1368.39,0.00016712,2]
[350155340,1737659449201,-500.0,0.00016712,2]
[350155342,1737659449210,-500.0,0.00016712,2]
[350155344,1737659449220,-500.0,0.00016712,2]
[350155345,1737659449229,-500.0,0.00016712,2]
[350155347,1737659449239,-3765.33,0.00016712,2]
[350155349,1737659449249,-500.0,0.00016712,2]
[350155351,1737659449262,-907.71,0.00016712,2]
[350155353,1737659449271,-500.0,0.00016712,2]
[350155355,1737659449281,-500.0,0.00016712,2]
[350155357,1737659449291,-890.41,0.00016712,2]
[350155359,1737659449301,-500.0,0.00016712,2]
[350155361,1737659449311,-500.0,0.00016712,2]
[350155363,1737659449320,-804.17,0.00016712,2]
[350155365,1737659449332,-717.06,0.00016712,2]
[350155367,1737659449343,-500.0,0.00016712,2]
[350155369,1737659449355,-1018.62,0.00016712,2]
[350155371,1737659449365,-500.0,0.00016712,2]
[350155373,1737659449375,-1134.5,0.00016712,2]
[350155374,1737659449386,-500.0,0.00016712,2]
[350155377,1737659449397,-500.0,0.00016712,2]
[350155379,1737659449408,-500.0,0.00016712,2]
[350155381,1737659449417,-500.0,0.00016712,2]
[350155383,1737659449427,-1963.62,0.00016712,2]
[350155385,1737659449436,-618.37,0.00016712,2]
[350155387,1737659449446,-500.0,0.00016712,2]
[350155388,1737659449455,-500.0,0.00016712,2]
[350155390,1737659449465,-500.0,0.00016712,2]
[350155392,1737659449474,-500.0,0.00016712,2]
[350155394,1737659449484,-500.0,0.00016712,2]
[350155396,1737659449493,-2352.22,0.00016712,2]
[350155398,1737659449505,-500.0,0.00016712,2]
[350155400,1737659449515,-500.0,0.00016712,2]
[350155402,1737659449524,-1719.23,0.00016712,2]
[350155404,1737659449534,-500.0,0.00016712,2]
[350155406,1737659449544,-500.0,0.00016712,2]
[350155407,1737659449554,-500.0,0.00016712,2]
[350155408,1737659449564,-500.0,0.00016712,2]
[350155409,1737659449575,-500.0,0.00016712,2]
[350155410,1737659449584,-1152.72,0.00016712,2]
[350155411,1737659449594,-500.0,0.00016712,2]
[350155412,1737659449603,-519.28746691,0.00016712,2]
[350155413,1737659449613,-500.0,0.00016712,2]
[350155415,1737659449622,-663.45,0.00016712,2]
[350155417,1737659449632,-500.0,0.00016712,2]
[350155419,1737659449642,-500.0,0.00016712,2]
[350155421,1737659449652,-500.0,0.00016712,2]
[350155423,1737659449661,-597.02,0.00016712,2]
[350155425,1737659449671,-604.98,0.00016712,2]
[350155427,1737659449680,-555.90946887,0.00016712,2]
[350155429,1737659449689,-500.0,0.00016712,2]
[350155430,1737659449699,-500.0,0.00016712,2]
[350155431,1737659449708,-500.0,0.00016712,2]
[350155432,1737659449717,-2176.5,0.00016712,2]
[350155433,1737659449731,-500.0,0.00016712,2]
[350155434,1737659449740,-695.73,0.00016712,2]
[350155435,1737659449750,-3149.47,0.00016712,2]
[350155436,1737659449762,-500.0,0.00016712,2]
[350155437,1737659449771,-500.0,0.00016712,2]
[350155438,1737659449781,-1018.19,0.00016712,2]
[350155439,1737659449790,-500.0,0.00016712,2]
[350155440,1737659449800,-1436.45,0.00016712,2]
[350155441,1737659449810,-500.0,0.00016712,2]
[350155442,1737659449820,-460.81748062,0.00016712,2]
[350155443,1737659449829,-500.0,0.00016712,2]
[350155444,1737659449839,-663.6,0.00016712,2]
[350155445,1737659449848,-500.0,0.00016712,2]
[350155446,1737659449857,-906.61,0.00016712,2]
[350155447,1737659449867,-500.0,0.00016712,2]
[350155448,1737659449877,-4932.44122282,0.00016745,2]
[350155449,1737659449887,-1200.0,0.000168,6]
[350155450,1737659449897,-579.79,0.00016813,2]
[350155451,1737659449907,-622.56,0.00016816,2]
[350155452,1737659449916,-150.0,0.00016816,2]
[350155453,1737659449926,-319.05962904,0.00016822,2]
[350155454,1737659449936,-248.07827217,0.00016822,2]
[350155455,1737659449946,-168.27944597,0.00016885,2]
[350155456,1737659449956,-1600.0,0.000169,6]
[350155457,1737659449966,-787.94634072,0.000169,2]
[350155458,1737659449976,-190.89066159,0.00016912,2]
[350155459,1737659449986,-270.0174035,0.00016921,2]
[350155460,1737659449995,-145259.77417075,0.00016921,2]
[350155461,1737659450013,-1062740.76634539,0.00016921,2]
[350155462,1737659450023,-29999.99,0.00016922,2]
[350155463,1737659450032,-29999.99,0.00016922,2]
[350155464,1737659450041,-1129.2,0.00016922,2]
[350155465,1737659450051,-9999.99,0.00016922,2]
[350155466,1737659450062,-151.0,0.00016922,2]
[350155467,1737659450072,-151.0,0.00016922,2]
[350155468,1737659450082,-151.0,0.00016922,2]
[350155469,1737659450091,-151.0,0.00016922,2]
[350155470,1737659450101,-222.118011,0.00016922,2]
[350155471,1737659450111,-222.118011,0.00016922,2]
[350155472,1737659450120,-151.0,0.00016922,2]
[350155473,1737659450131,-151.0,0.00016922,2]
[350155474,1737659450140,-151.0,0.00016922,2]
[350155475,1737659450150,-500.0,0.00016973,2]
[350155476,1737659450160,-500.0,0.00016973,2]
[350155477,1737659450170,-151.0,0.00016984,2]
[350155478,1737659450179,-151.0,0.00016984,2]
[350155479,1737659450189,-153.059533,0.00016984,2]
[350155480,1737659450200,-151.0,0.00016984,2]
[350155481,1737659450210,-151.0,0.00016984,2]
[350155482,1737659450220,-151.0,0.00016984,2]
[350155483,1737659450231,-151.0,0.00016984,2]
[350155484,1737659450243,-151.0,0.00016984,2]
[350155485,1737659450255,-151.0,0.00016984,2]
[350155486,1737659450265,-151.0,0.00016984,2]
[350155487,1737659450274,-151.0,0.00016984,2]
[350155488,1737659450284,-151.0,0.00016984,2]
[350155489,1737659450294,-151.0,0.00016984,2]
[350155490,1737659450304,-1779.271711,0.00016984,2]
[350155491,1737659450315,-151.0,0.00016984,2]
[350155492,1737659450325,-151.0,0.00016984,2]
[350155493,1737659450342,-151.0,0.00016984,2]
[350155494,1737659450352,-400.491439,0.00016984,2]
[350155495,1737659450361,-400.491439,0.00016984,2]
[350155496,1737659450372,-151.0,0.00016984,2]
[350155497,1737659450382,-151.0,0.00016984,2]
[350155498,1737659450392,-151.0,0.00016984,2]
[350155499,1737659450403,-151.0,0.00016984,2]
[350155500,1737659450413,-151.0,0.00016984,2]
[350155501,1737659450423,-151.0,0.00016984,2]
[350155502,1737659450432,-153.181661,0.00016984,2]
[350155503,1737659450442,-151.0,0.00016984,2]
[350155504,1737659450452,-151.0,0.00016984,2]
[350155505,1737659450461,-151.0,0.00016984,2]
[350155506,1737659450471,-151.0,0.00016984,2]
[350155507,1737659450480,-151.0,0.00016984,2]
[350155508,1737659450490,-151.0,0.00016984,2]
[350155509,1737659450499,-3910.64569535,0.00016985,2]
[350155510,1737659450511,-151.0,0.00016985,2]
[350155511,1737659450521,-151.0,0.00016985,2]
[350155512,1737659450530,-151.0,0.00016985,2]
[350155513,1737659450539,-504.530978,0.00016985,2]
[350155514,1737659450549,-504.530978,0.00016985,2]
[350155515,1737659450559,-151.0,0.00016985,2]
[350155516,1737659450570,-257.20213,0.00016985,2]
[350155517,1737659450579,-151.0,0.00016985,2]
[350155518,1737659450589,-370.249633,0.00016985,2]
[350155519,1737659450598,-151.0,0.00016985,2]
[350155520,1737659450608,-151.0,0.00016985,2]
[350155521,1737659450618,-151.0,0.00016985,2]
[350155522,1737659450628,-151.0,0.00016985,2]
[350155523,1737659450638,-151.0,0.00016985,2]
[350155524,1737659450647,-634.041024,0.00016985,2]
[350155525,1737659450656,-634.041024,0.00016985,2]
[350155526,1737659450665,-160.344778,0.00016985,2]
[350155527,1737659450675,-151.0,0.00016985,2]
[350155528,1737659450684,-153.564244,0.00016985,2]
[350155529,1737659450697,-160.344778,0.00016985,2]
[350155530,1737659450706,-1020.76,0.00016985,2]
[350155531,1737659450715,-500.0,0.00016985,2]
[350155532,1737659450725,-666.0,0.00016985,2]
[350155533,1737659450735,-871.79,0.00016985,2]
[350155534,1737659450746,-500.0,0.00016985,2]
[350155535,1737659450756,-1745.56,0.00016985,2]
[350155536,1737659450766,-3723.73,0.00016985,2]
[350155537,1737659450775,-742.21,0.00016985,2]
[350155538,1737659450785,-779.77,0.00016985,2]
[350155539,1737659450794,-725.66,0.00016985,2]
[350155540,1737659450803,-1457.19,0.00016985,2]
[350155541,1737659450812,-500.0,0.00016985,2]
[350155542,1737659450821,-678.42,0.00016985,2]
[350155543,1737659450830,-1002.67,0.00016985,2]
[350155544,1737659450839,-1122.55,0.00016985,2]
[350155545,1737659450848,-500.0,0.00016985,2]
[350155546,1737659450857,-1000.0,0.00016985,2]
[350155547,1737659450866,-1033.73,0.00016985,2]
[350155548,1737659450876,-500.0,0.00016985,2]
[350155549,1737659450885,-1827.81,0.00016985,2]
[350155550,1737659450894,-1482.85,0.00016985,2]
[350155551,1737659450903,-841.0,0.00016985,2]
[350155552,1737659450912,-151.0,0.00016986,2]
[350155553,1737659450921,-489.55412299,0.00016986,2]
[350155554,1737659450930,-500.0,0.00016986,2]
[350155555,1737659450939,-500.0,0.00016986,2]
[350155556,1737659450949,-500.0,0.00016986,2]
[350155557,1737659450958,-500.0,0.00016986,2]
[350155558,1737659450968,-500.0,0.00016986,2]
[350155559,1737659450977,-500.0,0.00016986,2]